Cogmind - Beta 16 @@@ ROGUE MODE // 2026.01.25 @ 21:56:31 // AFD2019/Pay2Buy Player: chebyrekser Result: Destroyed by G-73 Enforcer with Heavy Laser Performance ------------- Evolutions (9) 4500 Regions Visited (28) 5600 Robots Destroyed (333) 1665 Value Destroyed (16965) 16965 Prototype IDs (20) 400 Alien Tech Used (0) 0 Bonus (8162) 8162 TOTAL SCORE: 37292 Bonus ------- High Alert Combat Kills 1768 Follower Combat Kills 972 Awakened Behemoth Slayer 1000 Entered Garrisons 1200 Used RIF Installer 2500 Entered DSFs 500 Aligned with FarCom 300 Friendly Fire -78 Cogmind --------- Core Integrity 0/1600 Matter 217/300 Energy 39/100 System Corruption 14% Temperature Cool (9) Movement Core (50) Location -1/Access Parts ------- > --- POWER (4) -------- (None) > --- PROPULSION (6) --- (None) > --- UTILITY (9) ------ Experimental Core Analyzer Graphene Brace > --- WEAPON (6) ------- (None) > --- INVENTORY (10) --- Enhanced Armored Leg Enhanced Armored Leg Improved Matter Compressor (300) Relay Coupler [Sentry] (26) Long-range Tractor Beam Gamma Bomb Array CR-A16's Behemoth Slayer Peak State ------------ > --- POWER ------------ Heavy Antimatter Reactor Heavy Antimatter Reactor Quantum Reactor > --- PROPULSION ------- Enhanced Armored Leg Enhanced Armored Leg Enhanced Armored Leg Enhanced Armored Leg Heavy Shield Leg > --- UTILITY ---------- Experimental Cooling System Experimental Coolant Injector Experimental Core Analyzer Improved Heavy Armor Plating Graphene Brace Advanced Force Field Relay Coupler [NC] Relay Coupler [Sentry] > --- WEAPON ----------- Helical Railgun Helical Railgun Light Antimatter Cannon Light Antimatter Cannon Improved Remote Datajack CR-A16's Behemoth Slayer > --- INVENTORY -------- Improved Matter Compressor Advanced Force Field Relay Coupler [Sentry] Long-range Tractor Beam Neutron Missile Launcher [Rating: 180] Favorites ----------- Power Heavy Ion Engine Engine Heavy Ion Engine Power Core Fission Core Reactor Heavy Antimatter Reactor Propulsion Enhanced Armored Leg Treads Improved Medium Treads Leg Enhanced Armored Leg Wheel Armored Wheel Utility Force Field Device Force Field Storage Large Matter Pod Processor Experimental Core Analyzer Hackware Relay Coupler [Sentry] Protection Hardened Heavy Armor Plating Weapon Cooled Plasma Rifle Energy Gun Cooled Plasma Rifle Ballistic Gun Autogun Ballistic Cannon Antimatter Cannon Launcher Rocket Launcher Special Weapon Improved Remote Datajack Impact Weapon Thunder Hammer Piercing Weapon CR-A16's Behemoth Slayer Build | -11 -10 -10 -10 -9 -8 -7 -7 -7 -7 -6 -6 -6 -6 -6 -6 -5 -5 -5 -5 -4 -4 -4 -4 -3 -3 -2 -2 -1 ------- Run | Yrd Mat Min Exi Min Mat Fac Gar Fac Gar Fac Was Fac Low Low Zio Pro Fac Gar Fac Fac Gar Fac Gar Res Gar Res DSF Acc Slots Evolved 18 | . . . . . 4 2 . . . 2 . . . . . . 2 . . 2 . . . 2 . 2 . 2 Power 3 | . . . . . . 1 . . . 1 . . . . . . . . . . . . . . . 1 . . Propulsion 4 | . . . . . 2 . . . . . . . . . . . 1 . . 1 . . . . . . . . Utility 7 | . . . . . 1 1 . . . 1 . . . . . . . . . 1 . . . 2 . . . 1 Weapon 4 | . . . . . 1 . . . . . . . . . . . 1 . . . . . . . . 1 . 1 Parts Attached 62 | . 6 3 . . 3 1 1 5 4 2 . 5 2 4 . 2 . 3 . 1 5 . 4 2 5 . 1 3 Power 2 | . 1 . . . . . . . . . . . . . . . . . . . . . . . 1 . . . Engine 1 | . 1 . . . . . . . . . . . . . . . . . . . . . . . . . . . Core . | . . . . . . . . . . . . . . . . . . . . . . . . . . . . . Reactor 1 | . . . . . . . . . . . . . . . . . . . . . . . . . 1 . . . Propulsion 5 | . 2 . . . . 1 . . . . . . . . . . . . . . . . . 1 1 . . . Treads 2 | . 2 . . . . . . . . . . . . . . . . . . . . . . . . . . . Leg 2 | . . . . . . . . . . . . . . . . . . . . . . . . 1 1 . . . Wheel 1 | . . . . . . 1 . . . . . . . . . . . . . . . . . . . . . . Hover . | . . . . . . . . . . . . . . . . . . . . . . . . . . . . . Flight . | . . . . . . . . . . . . . . . . . . . . . . . . . . . . . Utility 34 | . 1 1 . . 1 . 1 3 3 2 . 4 2 2 . . . 2 . 1 3 . 2 . 3 . 1 2 Device 11 | . . 1 . . 1 . . 1 . . . 1 1 1 . . . . . 1 1 . 1 . 1 . . 1 Storage 1 | . . . . . . . . . . 1 . . . . . . . . . . . . . . . . . . Processor 1 | . . . . . . . . . . . . 1 . . . . . . . . . . . . . . . . Hackware 16 | . . . . . . . . 2 3 1 . 2 . 1 . . . 2 . . 1 . 1 . 2 . . 1 Protection 5 | . 1 . . . . . 1 . . . . . 1 . . . . . . . 1 . . . . . 1 . Artifact . | . . . . . . . . . . . . . . . . . . . . . . . . . . . . . Weapon 21 | . 2 2 . . 2 . . 2 1 . . 1 . 2 . 2 . 1 . . 2 . 2 1 . . . 1 Energy Gun 2 | . . . . . . . . . . . . . . 1 . 1 . . . . . . . . . . . . Energy Cannon . | . . . . . . . . . . . . . . . . . . . . . . . . . . . . . Ballistic Gun 6 | . 2 . . . 1 . . 1 . . . . . . . . . . . . . . 1 1 . . . . Ballistic Cannon 4 | . . . . . 1 . . . 1 . . . . 1 . . . 1 . . . . . . . . . . Launcher 4 | . . 2 . . . . . . . . . . . . . . . . . . . . 1 . . . . 1 Special Weapon 2 | . . . . . . . . 1 . . . . . . . 1 . . . . . . . . . . . . Impact Weapon 1 | . . . . . . . . . . . . 1 . . . . . . . . . . . . . . . . Slashing Weapon . | . . . . . . . . . . . . . . . . . . . . . . . . . . . . . Piercing Weapon 2 | . . . . . . . . . . . . . . . . . . . . . 2 . . . . . . . Special Melee Weapon . | . . . . . . . . . . . . . . . . . . . . . . . . . . . . . Unidentified Prototypes . | . . . . . . . . . . . . . . . . . . . . . . . . . . . . . Parts Lost 47 | . . 2 . . 2 1 4 . 1 . . . 2 3 . 1 1 1 . . 3 . 2 . 1 . 1 22 Power 8 | . . 1 . . . . . . . . . . . . . 1 1 . . . 2 . . . . . . 3 Propulsion 10 | . . . . . 1 . 2 . . . . . . . . . . . . . . . 1 . . . . 6 Utility 16 | . . 1 . . . . 2 . . . . . 2 1 . . . 1 . . 1 . . . . . 1 7 Weapon 13 | . . . . . 1 1 . . 1 . . . . 2 . . . . . . . . 1 . 1 . . 6 Highest Loss Streak 8 | . . 1 . . 1 1 4 . 1 . . . 2 3 . 1 1 1 . . 2 . 1 . 1 . 1 8 To Critical Strikes 1 | . . . . . . . . . . . . . . . . . . . . . 1 . . . . . . . Average Backups 8 | 1 2 5 8 8 8 5 8 9 9 9 9 8 9 8 9 9 8 9 9 8 9 9 9 10 9 10 8 6 Power . | . . . . . . . . . . . . . . . . . . . . . . . . . . 1 . . Propulsion . | . . 1 1 1 1 . . . . . . . . . . . . . . . . . . . . . . . Utility 4 | . . 1 2 2 2 2 5 6 6 6 6 4 5 5 4 4 4 4 5 4 5 5 5 6 5 6 5 3 Weapon 3 | 1 1 3 5 5 4 3 2 2 2 2 3 3 4 3 4 4 4 3 3 3 3 3 3 3 3 3 2 2 Tool/Special . | . . . . . . . . . . . . . . . . . . . . . . . . . . . . . Unused Backups 7 | . . . . . . . 2 . 2 . . . . . . . . . . . . . 1 . . . 1 1 Power 1 | . . . . . . . . . . . . . . . . . . . . . . . . . . . 1 . Propulsion . | . . . . . . . . . . . . . . . . . . . . . . . . . . . . . Utility 5 | . . . . . . . 1 . 2 . . . . . . . . . . . . . 1 . . . . 1 Weapon 1 | . . . . . . . 1 . . . . . . . . . . . . . . . . . . . . . Tool/Special . | . . . . . . . . . . . . . . . . . . . . . . . . . . . . . Average Slot Usage (%) 90 | . 88 88 100 100 80 87 90 92 91 86 93 93 98 98 98 92 92 93 94 88 86 89 90 90 93 85 85 65 Engine 5 | . 7 8 14 14 9 7 7 7 7 6 6 6 6 6 6 6 4 . . . . . . . . . . . Core 5 | . . . . . . 3 7 7 7 13 13 13 13 13 13 6 5 10 11 10 5 5 5 4 2 . . . Reactor 2 | . . . . . . . . . . . . . . . . 4 5 5 5 5 7 10 10 9 10 13 13 9 Treads 15 | . 27 28 28 28 26 23 21 23 23 20 20 20 20 20 18 . . . . . . . . . . . . . Leg 8 | . . . . . . . . . . . . . . . 1 26 28 29 29 26 26 26 29 27 27 25 21 15 Wheel 2 | . . . . . . 7 7 7 7 6 6 6 6 6 5 . . . . . . . . . . . . . Device 11 | . . 8 14 14 9 15 15 9 11 13 13 12 13 13 13 13 11 11 11 15 14 15 15 14 16 13 16 12 Hackware 3 | . . . . . . . . 4 2 . 6 6 6 6 5 . . 2 5 5 5 5 5 4 5 8 4 5 Protection 8 | . 13 8 14 14 9 7 7 7 7 6 6 6 11 11 12 13 11 7 5 5 5 5 5 4 4 4 4 2 Energy Gun 3 | . . . . . . . . . . . . . . . 5 12 11 11 11 10 10 10 10 7 4 . . . Ballistic Gun 10 | . 27 26 28 11 26 19 15 13 8 6 6 3 4 2 . . . . . . 5 5 3 9 9 8 8 4 Ballistic Cannon 5 | . . . . . . 3 6 7 9 9 6 10 13 13 12 5 9 7 9 9 3 4 2 . 2 4 7 6 Special Weapon 1 | . . . . . . . . 1 3 3 6 1 . 1 . . . 2 1 . . . 1 . . 4 4 2 Peak Build Rating 180 | 10 13 14 17 17 36 48 55 56 56 63 61 68 68 77 92 94 108 117 115 123 134 134 141 159 165 159 174 180 Average Rating 72 | 10 11 12 17 16 32 44 52 55 54 61 61 64 67 70 76 92 107 113 114 121 126 132 132 150 158 158 172 139 On Entrance 81 | . 10 13 16 17 16 33 48 55 55 55 61 61 68 68 77 91 94 105 113 115 128 132 134 141 159 159 163 171 Avg Prop Armor Cover (%) 7 | . . . . . . 12 11 12 9 1 1 1 1 1 1 . . . . . . . 2 . . . . 30 Naked Turns . | . . . . . . . . . . . . . . . . . . . . . . . . . . . . . Heaviest Build 121 | 13 21 23 23 24 46 62 62 62 66 80 75 81 81 75 83 86 94 104 101 102 101 101 102 107 121 113 119 116 Greatest Support 160 | 40 40 40 40 40 60 60 80 12 80 80 80 80 80 80 80 80 108 108 108 108 108 108 120 120 120 140 140 160 Greatest Overweight (x) 5 | . 4 . . . . 5 5 5 5 . . 1 1 . 1 1 . . . . . . 1 1 1 . . 1 Average Overweight (x) . | . . . . . . 3 4 4 3 . . . . . . . . . . . . . . . . . . . Largest Inventory Capacity 10 | 10 10 10 10 10 10 10 10 10 10 10 10 10 10 10 10 10 10 10 10 10 10 10 10 10 10 10 10 10 Average Capacity 10 | 10 10 10 10 10 10 10 10 10 10 10 10 10 10 10 10 10 10 10 10 10 10 10 10 10 10 10 10 10 Most Carried 10 | 1 8 7 8 8 9 8 10 10 10 10 9 10 9 10 10 10 10 10 10 10 10 9 10 10 10 10 10 8 Average Carried 8 | 1 2 5 8 8 8 6 8 9 9 9 9 8 9 8 9 10 9 10 10 9 9 9 9 9 9 10 8 6 Final Capacity 10 | 10 10 10 10 10 10 10 10 10 10 10 10 10 10 10 10 10 10 10 10 10 10 10 10 10 10 10 10 10 Final Carried 10 | 1 4 7 8 8 9 6 10 10 10 9 9 9 9 10 10 10 10 10 10 10 9 9 10 9 10 10 7 7 Class Distribution -------------------- 56% | Tank 20% | Mutant 17% | Bothacker-Tank Dominant Class ---------------- Mutant | -10/Materials Mutant | -10/Mines Mutant | -10/Exiles Mutant | -9/Mines Tank | -8/Materials Tank | -7/Factory Tank | -7/Garrison Bothacker-Tank | -7/Factory Bothacker-Tank | -7/Garrison Bothacker-Tank | -6/Factory Bothacker-Tank | -6/Waste Mutant | -6/Factory Tank | -6/Lower Caves Tank | -6/Lower Caves Tank | -6/Zion Tank | -5/Proximity Caves Tank | -5/Factory Tank | -5/Garrison Tank | -5/Factory Tank | -4/Factory Tank | -4/Garrison Tank | -4/Factory Tank | -4/Garrison Tank | -3/Research Tank | -3/Garrison Bothacker-Tank | -2/Research Generator-Tank | -2/DSF Generator-Executioner | -1/Access Resources | -11 -10 -10 -10 -9 -8 -7 -7 -7 -7 -6 -6 -6 -6 -6 -6 -5 -5 -5 -5 -4 -4 -4 -4 -3 -3 -2 -2 -1 ----------- Run | Yrd Mat Min Exi Min Mat Fac Gar Fac Gar Fac Was Fac Low Low Zio Pro Fac Gar Fac Fac Gar Fac Gar Res Gar Res DSF Acc Matter Collected 12713 | 79 640 360 . 18 1120 384 546 497 908 . . 1051 218 557 . 506 179 408 292 . 730 48 700 53 1061 21 723 1614 Remotely 997 | . . . . . . . . . . . . 190 . . . . . . . . . . . . 455 . 178 174 Salvage Created 13184 | 79 640 355 . 32 1407 417 581 230 372 . . 832 169 210 . 544 399 445 581 . 926 149 935 53 842 21 881 2084 Parts . | . . . . . . . . . . . . . . . . . . . . . . . . . . . . . Haulers Intercepted 5 | . . . . . 3 . . . . . . . . . . . 1 . . . . . . . . . . 1 Recyclers Shooed . | . . . . . . . . . . . . . . . . . . . . . . . . . . . . . Parts Field Recycled . | . . . . . . . . . . . . . . . . . . . . . . . . . . . . . Retrieved Matter . | . . . . . . . . . . . . . . . . . . . . . . . . . . . . . Parts Self-Destructed . | . . . . . . . . . . . . . . . . . . . . . . . . . . . . . Prevented . | . . . . . . . . . . . . . . . . . . . . . . . . . . . . . Parts Restored . | . . . . . . . . . . . . . . . . . . . . . . . . . . . . . Kills | -11 -10 -10 -10 -9 -8 -7 -7 -7 -7 -6 -6 -6 -6 -6 -6 -5 -5 -5 -5 -4 -4 -4 -4 -3 -3 -2 -2 -1 ------- Run | Yrd Mat Min Exi Min Mat Fac Gar Fac Gar Fac Was Fac Low Low Zio Pro Fac Gar Fac Fac Gar Fac Gar Res Gar Res DSF Acc Combat Hostiles Destroyed 255 | . 9 14 . 8 26 8 16 3 13 . . 12 5 7 . 15 4 16 6 . 14 1 26 . 20 . 8 24 Guns 109 | . 9 10 . . 17 7 6 3 2 . . 3 . 2 . 3 . 3 3 . 7 . 9 . 14 . 3 8 Cannons 67 | . . . . . 2 1 5 . 7 . . 6 5 5 . 2 2 7 3 . 4 . 3 . 1 . 5 9 AOE 66 | . . 4 . 8 7 . 5 . 4 . . 1 . . . 9 2 6 . . . . 13 . 5 . . 2 Classes Destroyed 23 | 2 4 2 . . 7 1 1 . . . . . 2 . . 1 . . . . 1 . 1 . . . 1 . Worker 26 | . 3 . . . 2 1 . 1 . . . 6 . . . . 3 . 2 . . . . . . . . 8 Builder 12 | . . . . . 1 2 . . . . . 3 . . . . . . . . . . . 1 . . . 5 Tunneler 5 | 1 1 . . . . . . . . . . . . . . . . . 1 . . . . 1 . 1 . . Hauler 5 | . . . . . 3 . . . . . . . . . . . 1 . . . . . . . . . . 1 Recycler 11 | 1 2 . . . 1 . . 1 . . . 2 . . . . . . 2 . . . . . . . . 2 Mechanic 2 | . . 1 . . . . . . . . . . . . . 1 . . . . . . . . . . . . Operator 4 | . . . . . 1 . . 1 . . . 1 . . . . . . . . . . . 1 . . . . Drone 2 | . . . . . . . . . . . . . . . . 2 . . . . . . . . . . . . Watcher 12 | . 3 . . . 4 . . . . . . . . . . . 3 . . . . 1 1 . . . . . Swarmer 47 | . 3 6 . 8 7 . 3 . 5 . . . 2 . . 2 . 3 . . . . . . 8 . . . Cutter 12 | . . . . . . . 1 . . . . . . . . . . 4 . . . . 7 . . . . . Saboteur 5 | . . . . . . . . . . . . . . . . . . . . . . . 3 . 2 . . . Grunt 98 | . 6 7 . . 6 5 9 1 3 . . 7 1 6 . 8 4 6 4 . 4 . 9 . 2 . . 10 Brawler 6 | . . . . . 1 . . . 3 . . . . . . . . . 1 . . . 1 . . . . . Duelist 4 | . . . . . . . . . . . . . 1 . . 2 . . . . . . . . . . . 1 Sentry 25 | . . . . . 9 . 2 . . . . 2 1 . . 1 . 2 1 . 5 . . . 2 . . . Specialist 3 | . . . . . 2 . . . . . . . . . . . . . . . . . . . . . 1 . Hunter 24 | . . . . . 1 1 . . 1 . . 1 . 2 . . 1 . . . 3 . 2 . . . 4 8 Programmer 24 | . . . . . . 2 1 2 1 . . 2 . . . . . 1 . . . . 3 . 6 . 2 4 Heavy 2 | . . . . . . . . . . . . . . . . . . . . . . . . . . . 1 1 Behemoth 4 | . . . . . . . . . . . . . . . . . . . . . 2 1 1 . . . . . Decomposer 1 | . . . . . . . . . . . . . . 1 . . . . . . . . . . . . . . Samaritan 1 | . . . . . . . . . . . . . 1 . . . . . . . . . . . . . . . Assembled 1 | . . 1 . . . . . . . . . . . . . . . . . . . . . . . . . . Best Kill Streak 19 | 2 5 4 . 4 6 3 3 1 3 . . 4 3 3 . 10 9 5 4 . 4 2 7 2 8 1 4 19 Combat Bots Only 12 | . 3 3 . 4 4 2 3 1 3 . . 3 3 3 . 10 3 5 3 . 4 1 7 . 8 . 4 12 Max Kills in Single Turn 5 | 1 2 3 . 4 5 1 2 1 2 . . 2 1 1 . 3 4 3 2 . 1 1 4 1 2 1 1 3 Gunslinging 1 | . 1 . . . . . . . . . . . . . . . . . . . . . . . 1 . . . Exploded 4 | . . 3 . 4 3 . 2 . 2 . . 1 . . . 3 1 3 . . . . 4 . 2 . . 1 Melee . | . . . . . . . . . . . . . . . . . . . . . . . . . . . . . Uniques/NPCs Destroyed . | . . . . . . . . . . . . . . . . . . . . . . . . . . . . . Combat | -11 -10 -10 -10 -9 -8 -7 -7 -7 -7 -6 -6 -6 -6 -6 -6 -5 -5 -5 -5 -4 -4 -4 -4 -3 -3 -2 -2 -1 -------- Run | Yrd Mat Min Exi Min Mat Fac Gar Fac Gar Fac Was Fac Low Low Zio Pro Fac Gar Fac Fac Gar Fac Gar Res Gar Res DSF Acc Hostile Shots Fired 1762 | . 32 35 . 1 80 35 151 51 35 . . 71 35 63 . 39 22 42 16 . 174 12 138 . 146 . 87 497 Missed 535 | . 9 5 . . 22 7 40 20 7 . . 17 11 17 . 10 6 11 5 . 58 2 49 . 45 . 26 168 Hits 1227 | . 23 30 . 1 58 28 111 31 28 . . 54 24 46 . 29 16 31 11 . 116 10 89 . 101 . 61 329 Melee 54 | . . 1 . . 1 . 3 . . . . . 9 . . . . 4 . . . . 22 . . . . 14 Projectile 1173 | . 23 29 . 1 57 28 108 31 28 . . 54 15 46 . 29 16 27 11 . 116 10 67 . 101 . 61 315 AOE 3 | . . . . . . . 2 . . . . . . . . . . . . . . . . . . . . 1 Critical Strikes 63 | . . 3 . . 4 . 2 . . . . 1 3 3 . 1 . 2 1 . 6 1 3 . 8 . 6 19 Actively Blocked 34 | . . . . . . . . . . . . . . . . . . . . . . . 2 . 7 . 6 19 Part Disruptions 4 | . . . . . . . . . . . . . . . . . . . . . . . 1 . 1 . 1 1 Damage Taken 16363 | . 235 387 . 21 732 456 795 147 250 . 6 404 368 532 . 309 162 425 124 . 1336 161 981 . 1406 . 848 6278 Core 2076 | . . 34 . . 36 15 29 12 10 . 6 12 21 67 . 10 9 10 9 . 37 46 33 . 31 . 36 1613 Absorbed by Shields 8325 | . . 59 . 8 235 169 410 105 266 . 6 362 251 280 . 286 173 360 127 . 1032 167 874 . 986 . 841 1328 Core Remaining (%) 92 | 100 . . . 86 93 . . . 90 . . . . . . 86 . . 97 . . . 89 . 97 . 97 . Volleys Fired 862 | 6 43 26 . 6 79 31 57 19 66 3 9 48 14 28 . 19 19 42 43 2 80 6 55 7 54 2 28 70 Largest 4 | 2 2 2 . 2 3 3 3 3 3 2 1 3 3 3 . 3 4 4 4 1 4 2 4 4 4 2 4 4 Hottest 198 | 46 46 53 . 63 99 99 99 99 104 71 23 114 104 104 . 90 114 114 135 33 119 48 124 124 151 76 178 198 Shots Fired 2062 | 12 86 49 . 9 201 73 117 42 116 5 9 122 39 73 . 42 32 97 98 2 190 7 168 16 139 4 103 211 Gun 1270 | 12 86 44 . 2 177 54 61 25 43 2 1 40 13 19 . 26 12 52 60 . 148 2 119 16 118 4 51 83 Cannon 660 | . . . . . 16 19 49 13 57 2 . 75 26 52 . 7 12 32 38 2 36 5 38 . 8 . 52 121 Launcher 70 | . . 5 . 7 8 . 7 1 6 . . 3 . . . 7 4 5 . . . . 6 . 5 . . 6 Special 62 | . . . . . . . . 3 10 1 8 4 . 2 . 2 4 8 . . 6 . 5 . 8 . . 1 Kinetic 1538 | 12 86 44 . 2 193 73 110 38 100 4 1 115 39 62 . 7 12 32 38 2 104 5 71 10 67 4 103 204 Thermal 392 | . . . . . . . . . . . . . . 9 . 26 12 52 60 . 80 2 86 6 59 . . . Explosive 66 | . . 5 . 7 8 . 7 1 6 . . 3 . . . 7 4 5 . . . . 6 . 5 . . 2 Electromagnetic 4 | . . . . . . . . . . . . . . . . . . . . . . . . . . . . 4 Robot Hit Streak 43 | 8 4 7 . 2 13 22 6 9 8 3 5 5 4 11 . 7 8 10 7 . 43 1 9 5 11 4 10 10 Robot Miss Streak 6 | 1 5 2 . 1 4 3 6 2 3 3 2 5 3 2 . 1 3 3 5 . 4 1 4 1 6 . 6 5 Penetration Max 2 | . . . . . . 1 . 1 1 . . 1 . . . . . . . . . . 1 . 1 . 1 2 Secondary Targets 10 | . 2 1 . . 2 . . . . . . . . . . . . . . . . . . . 5 . . . Max Gunslinging Chain 1 | . 1 1 . . 1 . . . . . . . . . . . . . . . . . . . 1 . . . Shots Hit Robots 1104 | 10 39 32 . 1 119 49 50 25 40 2 6 74 19 48 . 30 20 51 46 . 105 4 99 6 66 3 49 111 Core Hits 598 | 3 23 25 . 7 58 19 26 12 21 . . 36 8 17 . 27 17 30 22 . 37 1 49 4 45 1 25 85 Critical Kills 25 | . . 1 . . 4 1 4 1 3 . . 4 2 . . . . . . . . . 1 . 1 . 1 2 Critical Parts Destroyed 45 | . . . . . 2 6 6 3 7 . . 11 3 . . . . . . . 1 . 2 . . . 1 3 Critical Strikes 106 | . . 1 . . 6 7 11 4 10 . . 16 5 . . 4 . 4 3 . 10 . 9 . 5 . 2 9 Burn 27 | . . . . . . . . . . . . . . . . 3 . 4 3 . 8 . 6 . 3 . . . Destroy 65 | . . 1 . . 6 7 11 4 10 . . 10 4 . . . . . . . 1 . 3 . 1 . 2 5 Blast 7 | . . . . . . . . . . . . 1 . . . 1 . . . . 1 . . . 1 . . 3 Smash 6 | . . . . . . . . . . . . 5 1 . . . . . . . . . . . . . . . Impale 1 | . . . . . . . . . . . . . . . . . . . . . . . . . . . . 1 Melee Attacks 55 | . . . . . . . . . . . . 22 1 1 . . . . . . 7 6 2 5 . . . 11 Impact 29 | . . . . . . . . . . . . 22 1 1 . . . . . . . . . 5 . . . . Slashing . | . . . . . . . . . . . . . . . . . . . . . . . . . . . . . Piercing 26 | . . . . . . . . . . . . . . . . . . . . . 7 6 2 . . . . 11 Sneak Attacks 19 | . . . . . . . . . . . . 10 1 1 . . . . . . . 1 . . . . . 6 Combat Hostiles . | . . . . . . . . . . . . . . . . . . . . . . . . . . . . . Follow-up Attacks . | . . . . . . . . . . . . . . . . . . . . . . . . . . . . . Damage Inflicted 38483 | 140 667 864 . 430 2522 1020 1321 566 1315 12 . 2990 668 1441 . 1799 989 1861 1402 . 2754 111 4439 156 2854 81 1723 6358 Guns 16815 | 140 620 477 . 14 1954 717 675 347 311 12 . 388 92 192 . 431 169 669 774 . 1932 23 1962 156 1744 81 832 2103 Cannons 10931 | . . . . . 60 296 303 132 608 . . 1186 470 1090 . 215 230 741 628 . 655 . 885 . 213 . 891 2328 Explosions 8544 | . . 384 . 413 508 . 343 87 396 . . 285 . . . 1153 590 451 . . . . 1592 . 897 . . 1445 Melee 2088 | . . . . . . . . . . . . 1131 106 159 . . . . . . 167 88 . . . . . 437 Ramming 105 | . 47 3 . 3 . 7 . . . . . . . . . . . . . . . . . . . . . 45 Kinetic 22110 | 140 620 477 . 14 2014 1013 978 479 919 12 . 1574 562 1183 . 215 230 741 628 . 1364 . 1525 110 1077 81 1723 4431 Thermal 5723 | . . . . . . . . 87 . . . . . 99 . 431 169 669 774 . 1223 23 1322 46 880 . . . Explosive 7510 | . . 384 . 413 508 . 343 . 396 . . 228 . . . 1153 590 451 . . . . 1592 . 897 . . 555 Electromagnetic 947 | . . . . . . . . . . . . 57 . . . . . . . . . . . . . . . 890 Impact 1396 | . . . . . . . . . . . . 1131 106 159 . . . . . . . . . . . . . . Slashing . | . . . . . . . . . . . . . . . . . . . . . . . . . . . . . Piercing 692 | . . . . . . . . . . . . . . . . . . . . . 167 88 . . . . . 437 Highest Corruption 18 | . . . . . 1 1 1 2 4 . 17 18 18 18 18 . . 2 2 . . . 1 . 11 . 7 14 Average Corruption 5 | . . . . . 1 1 1 1 3 . 11 17 18 18 18 . . 1 2 . . . 1 . 8 . 4 5 Corruption Purged . | . . . . . . . . . . . . . . . . . . . . . . . . . . . . . Corruption Blocked . | . . . . . . . . . . . . . . . . . . . . . . . . . . . . . Effects 235 | . . . . . 10 4 8 8 27 . 6 58 23 28 2 . . 10 10 . . . 3 . 18 . 1 19 Message Errors 52 | . . . . . 2 2 3 3 6 . 2 14 6 7 . . . 2 1 . . . . . 3 . . 1 Matter Fused 65 | . . . . . 3 1 1 2 9 . 1 13 6 7 1 . . 2 4 . . . 1 . 6 . . 8 Heat Flow Errors 24 | . . . . . 1 . 2 . . . 2 5 1 4 . . . 2 1 . . . . . 1 . . 5 Energy Discharges 25 | . . . . . . . 2 2 6 . . 4 1 4 . . . 1 2 . . . 1 . 1 . . 1 Parts Rejected 5 | . . . . . . . . . . . . 1 . 1 . . . . . . . . . . 1 . 1 1 Parts Fused 5 | . . . . . . . . . . . . 2 1 1 . . . . . . . . . . 1 . . . Data Loss (minor) 28 | . . . . . 3 . . . 1 . . 10 5 2 1 . . . 1 . . . . . 2 . . 3 Data Loss (major) 7 | . . . . . . . . . 1 . 1 1 . 2 . . . 2 . . . . . . . . . . Misfires 9 | . . . . . 1 . . . 4 . . 2 . . . . . 1 . . . . . . 1 . . . Alerts 4 | . . . . . . 1 . . . . . 1 . . . . . . . . . . 1 . 1 . . . Misdirections 1 | . . . . . . . . . . . . 1 . . . . . . . . . . . . . . . . Weapon Failures 10 | . . . . . . . . 1 . . . 4 3 . . . . . 1 . . . . . 1 . . . Overload Shots 1 | . . . . . . . . . . . . . . . . . . . . . . . . 1 . . . . Overflow Damage 1309 | . . 10 . 31 . . . . 3 . . 517 142 195 . 61 1 4 12 . 3 1 58 . 70 . 9 192 Projectiles 224 | . . . . . . . . . 3 . . 18 36 39 . . 1 . 12 . 3 . 8 . 31 . 9 64 Explosions 217 | . . 10 . 31 . . . . . . . 9 . . . 61 . 4 . . . . 50 . 39 . . 13 Melee 868 | . . . . . . . . . . . . 490 106 156 . . . . . . . 1 . . . . . 115 Knockbacks 97 | . . . . . . 2 2 1 5 . . 12 7 14 . . . 4 3 . 4 . 12 . 1 . 10 20 Impact 6 | . . . . . . . . . . . . 4 1 . . . . . . . . . . . . . . 1 Kinetic 88 | . . . . . . 2 2 1 5 . . 8 5 12 . . . 4 3 . 4 . 12 . 1 . 10 19 Secondary 3 | . . . . . . . . . . . . . 1 2 . . . . . . . . . . . . . . Self-Inflicted Damage 729 | . . 29 . 20 12 . 41 . 5 . . . . . . . 41 72 20 . . . 149 . 31 . . 309 Shots 30 | . . 1 . 1 1 . 1 . 1 . . . . . . . 1 2 1 . . . 2 . 1 . . 18 Rammed 11 | . 6 2 . 1 . 2 . . . . . . . . . . . . . . . . . . . . . . Targets Rammed 17 | . 6 2 . 1 . 2 . . . . . . . . . . . . . . . . . . . . . 6 Kicked 6 | . . . . . . . . . . . . . . . . . . . . . . . . . . . . 6 Crushed . | . . . . . . . . . . . . . . . . . . . . . . . . . . . . . Highest Temperature 338 | 4 51 76 . 30 288 92 297 163 338 24 131 338 234 206 . 184 194 266 243 . 115 144 177 . 93 . . 281 Average Temperature 76 | 2 9 27 . 15 55 25 112 59 92 13 57 108 100 101 . 15 74 116 97 . 86 82 70 . 11 . . 67 Received Heat Transfer 2213 | . 90 228 . . 273 24 216 26 18 . 3 65 66 132 . 91 28 36 49 . 299 196 59 . 64 . . 250 Effects 8 | . . . . . . . . . 4 . . 4 . . . . . . . . . . . . . . . . Shutdowns 1 | . . . . . . . . . . . . 1 . . . . . . . . . . . . . . . . Interference 6 | . . . . . . . . . 3 . . 3 . . . . . . . . . . . . . . . . Short Circuit 1 | . . . . . . . . . 1 . . . . . . . . . . . . . . . . . . . Siege Activations . | . . . . . . . . . . . . . . . . . . . . . . . . . . . . . Martial Activations . | . . . . . . . . . . . . . . . . . . . . . . . . . . . . . Shielding Activations . | . . . . . . . . . . . . . . . . . . . . . . . . . . . . . Robots Disrupted . | . . . . . . . . . . . . . . . . . . . . . . . . . . . . . Combat Hostiles . | . . . . . . . . . . . . . . . . . . . . . . . . . . . . . Robots Corrupted 12 | . . . . . . . . . . . . 6 1 . . . . . . . . . . . . . . 5 Combat Hostiles 7 | . . . . . . . . . . . . 2 . . . . . . . . . . . . . . . 5 Parts Fried . | . . . . . . . . . . . . . . . . . . . . . . . . . . . . . Impact Corruptions 28 | . . . . . . . . . . . . 14 13 1 . . . . . . . . . . . . . . Robots Melted 3 | . . . . . . . . . . . . . . . . 1 . . . . 1 . 1 . . . . . Combat Hostiles 2 | . . . . . . . . . . . . . . . . 1 . . . . 1 . . . . . . . Parts Melted 1 | . . . . . . . . . . . . . . . . . . . . . 1 . . . . . . . Heat Transferred 13972 | . . . . . . . . 50 . . . . . 200 . 1200 350 1725 1900 . 3350 50 3097 100 1950 . . . Parts Sabotaged . | . . . . . . . . . . . . . . . . . . . . . . . . . . . . . Parts Stolen . | . . . . . . . . . . . . . . . . . . . . . . . . . . . . . Parts Stripped . | . . . . . . . . . . . . . . . . . . . . . . . . . . . . . Power Chain Reactions . | . . . . . . . . . . . . . . . . . . . . . . . . . . . . . Alert | -11 -10 -10 -10 -9 -8 -7 -7 -7 -7 -6 -6 -6 -6 -6 -6 -5 -5 -5 -5 -4 -4 -4 -4 -3 -3 -2 -2 -1 ------- Run | Yrd Mat Min Exi Min Mat Fac Gar Fac Gar Fac Was Fac Low Low Zio Pro Fac Gar Fac Fac Gar Fac Gar Res Gar Res DSF Acc Maximum Alert Level 3 | . . . . 1 2 . 3 1 3 2 . 1 . . . . . 2 1 . 2 1 3 2 3 2 2 3 Low Security (%) 43 | 100 100 100 . 94 55 100 21 . 8 . 100 69 . . . . 100 3 . 100 37 48 12 . . . . . Level 1 25 | . . . . 5 42 . 18 100 3 . . 30 . . . . . 36 100 . 38 51 5 . 6 . . 47 Level 2 18 | . . . . . 2 . 33 . 32 100 . . . . . . . 60 . . 23 . 31 100 28 100 100 46 Level 3 12 | . . . . . . . 26 . 54 . . . . . . . . . . . . . 50 . 65 . . 6 Level 4 . | . . . . . . . . . . . . . . . . . . . . . . . . . . . . . Level 5 . | . . . . . . . . . . . . . . . . . . . . . . . . . . . . . High Security . | . . . . . . . . . . . . . . . . . . . . . . . . . . . . . Max Security . | . . . . . . . . . . . . . . . . . . . . . . . . . . . . . Sterilizations 1 | . . . . . . . . . . . . . . . . . . . . . . . . . . . 1 . Peak Influence 1096 | 10 162 126 . 211 408 113 754 395 1075 564 170 271 . . . . 184 685 374 161 449 235 1096 616 1059 595 570 817 Initial 616 | . . 3 . . 50 91 65 395 189 564 170 21 . . . . 164 112 359 161 108 235 138 616 378 595 414 341 Average 321 | 2 57 37 . 84 179 39 482 321 702 529 121 154 . . . . 116 440 315 158 252 199 659 565 817 575 469 465 Influence Increases 10336 | 10 340 356 . 299 1041 265 729 243 936 2 . 692 125 170 . 389 390 603 290 4 391 53 1018 29 711 8 186 1056 Destroy 0b10 Robot/C 5355 | . 180 260 . 160 580 160 320 100 440 . . 260 100 140 . 320 120 360 120 . 280 20 540 . 415 . 120 360 Destroy 0b10 Robot/NC 392 | 10 45 5 . . 65 15 . 15 . . . 60 . . . 15 35 . 25 . . 5 10 15 . 4 4 64 Destroy Leader 838 | . 46 50 . 20 176 50 20 30 30 . . 60 10 30 . 20 26 20 20 . 10 12 60 . 50 . 24 74 Allied During Kill 250 | . . 4 . 21 16 . . 12 111 . . 7 . . . 34 15 7 . . 4 8 2 . 7 . 2 . Successful Hack 167 | . 39 . . . 23 18 14 . 14 . . 16 . . . . . . . . . . . . . 4 . 39 Disable Machine 366 | . 15 . . 45 30 15 . 45 . . . 120 . . . . . . 45 . . . . . 15 . 12 24 Anti-Garrison Action 888 | . . . . . . . 300 . 250 . . . . . . . . 100 . . 50 . 100 . 88 . . . Destroy Structure 1336 | . . 37 . 53 61 7 45 26 91 2 . 64 . . . . 44 116 80 4 47 8 201 14 121 . 24 291 Advance Influence 150 | . . . . . . . . . . . . . . . . . 150 . . . . . . . . . . . Partial Spotted 15 | . . . . . 15 . . . . . . . . . . . . . . . . . . . . . . . Lose Combat Pursuer 579 | . 15 . . . 75 . 30 15 . . . 105 15 . . . . . . . . . 105 . 15 . . 204 Influence Decreases 9539 | 10 330 366 . 168 970 374 68 727 131 591 456 478 333 168 38 366 253 78 644 180 97 304 120 620 157 514 169 829 Entered New Map 3953 | . . 7 . . 81 111 28 359 81 511 316 9 91 8 38 . 9 48 326 170 47 214 60 480 127 464 139 229 Time Decay 4606 | 10 330 308 . 168 600 263 . 368 . 80 100 449 222 150 . 356 214 . 318 10 . 90 . 140 . 50 . 380 Lost Part 439 | . . 19 . . 20 . 40 . 10 . . . 20 10 . 10 10 10 . . 30 . 20 . 10 . 10 220 Lost Ally 332 | . . 32 . . 60 . . . 40 . 40 20 . . . . 20 20 . . 20 . 40 . 20 . 20 . Purge Threat 209 | . . . . . 209 . . . . . . . . . . . . . . . . . . . . . . . Squads Dispatched 37 | . 1 1 . . 2 3 . 2 . . . 5 . . . 1 2 . 2 . . . . 1 . . 1 16 Investigation 4 | . . . . . . . . 1 . . . . . . . . 1 . . . . . . . . . . 2 Extermination 7 | . . . . . . 1 . 1 . . . 2 . . . . . . 1 . . . . . . . . 2 Reinforcement 22 | . 1 . . . 2 2 . . . . . 3 . . . . 1 . 1 . . . . 1 . . 1 10 Assault 4 | . . 1 . . . . . . . . . . . . . 1 . . . . . . . . . . . 2 Garrison . | . . . . . . . . . . . . . . . . . . . . . . . . . . . . . Intercept . | . . . . . . . . . . . . . . . . . . . . . . . . . . . . . Searches Triggered . | . . . . . . . . . . . . . . . . . . . . . . . . . . . . . Construction Impeded 6 | . . . . . 1 1 . . . . . 1 . . . . 1 . . . . . . . . . . 2 Haulers Reinforced 5 | . . . . . . . . . . . . 1 . . . . . . 1 . . . . . . . . 3 Active Scanning Responses . | . . . . . . . . . . . . . . . . . . . . . . . . . . . . . Cargo Convoy Interrupts . | . . . . . . . . . . . . . . . . . . . . . . . . . . . . . Stealth | -11 -10 -10 -10 -9 -8 -7 -7 -7 -7 -6 -6 -6 -6 -6 -6 -5 -5 -5 -5 -4 -4 -4 -4 -3 -3 -2 -2 -1 --------- Run | Yrd Mat Min Exi Min Mat Fac Gar Fac Gar Fac Was Fac Low Low Zio Pro Fac Gar Fac Fac Gar Fac Gar Res Gar Res DSF Acc Distress Signals 17 | . 4 . . . 3 . . . . . . 1 . . . . . . 1 . . . 1 . . . . 7 Communications Jammed . | . . . . . . . . . . . . . . . . . . . . . . . . . . . . . Distress Signals . | . . . . . . . . . . . . . . . . . . . . . . . . . . . . . Times Spotted 354 | . 15 17 . 4 38 10 15 8 18 . 3 17 6 9 . 18 8 17 14 . 18 2 26 1 23 . 8 59 Peak Tracking Total 16 | . 4 9 . 4 7 3 3 2 3 . 2 3 3 3 . 10 3 5 5 . 4 2 12 1 8 . 2 16 Tactical Retreats 28 | . 1 1 . . 3 . 2 1 . . . 6 1 . . . . . . . . . 3 . 1 . . 9 Traps | -11 -10 -10 -10 -9 -8 -7 -7 -7 -7 -6 -6 -6 -6 -6 -6 -5 -5 -5 -5 -4 -4 -4 -4 -3 -3 -2 -2 -1 ------- Run | Yrd Mat Min Exi Min Mat Fac Gar Fac Gar Fac Was Fac Low Low Zio Pro Fac Gar Fac Fac Gar Fac Gar Res Gar Res DSF Acc Traps Triggered 33 | . 4 . . . 1 2 1 1 7 1 . . . . . . 1 4 1 . 5 . 1 1 1 . . 2 Indirectly . | . . . . . . . . . . . . . . . . . . . . . . . . . . . . . Trap Hack Attempts . | . . . . . . . . . . . . . . . . . . . . . . . . . . . . . Triggered . | . . . . . . . . . . . . . . . . . . . . . . . . . . . . . Disarmed . | . . . . . . . . . . . . . . . . . . . . . . . . . . . . . Reprogrammed . | . . . . . . . . . . . . . . . . . . . . . . . . . . . . . Reused . | . . . . . . . . . . . . . . . . . . . . . . . . . . . . . Traps Extracted . | . . . . . . . . . . . . . . . . . . . . . . . . . . . . . Installed . | . . . . . . . . . . . . . . . . . . . . . . . . . . . . . Triggered . | . . . . . . . . . . . . . . . . . . . . . . . . . . . . . Machines | -11 -10 -10 -10 -9 -8 -7 -7 -7 -7 -6 -6 -6 -6 -6 -6 -5 -5 -5 -5 -4 -4 -4 -4 -3 -3 -2 -2 -1 ---------- Run | Yrd Mat Min Exi Min Mat Fac Gar Fac Gar Fac Was Fac Low Low Zio Pro Fac Gar Fac Fac Gar Fac Gar Res Gar Res DSF Acc Machines Disabled 42 | . 1 . . 3 2 1 7 3 3 . . 8 . . . . . 2 3 . 1 . 2 . 3 . 1 2 Max in Single Turn 4 | . 1 . . 1 1 1 1 2 1 . . 4 . . . . . 1 1 . 1 . 1 . 1 . 1 1 Garrison Access 3 | . . . . . 1 . . . . . . . . . . . . . . . . . . . . 1 . 1 Garrison Relay 16 | . . . . . . . 6 . 3 . . . . . . . . 2 . . 1 . 2 . 2 . . . Machines Repaired . | . . . . . . . . . . . . . . . . . . . . . . . . . . . . . Machines Dismantled . | . . . . . . . . . . . . . . . . . . . . . . . . . . . . . Machines Sabotaged . | . . . . . . . . . . . . . . . . . . . . . . . . . . . . . Overloaded Fab Kills . | . . . . . . . . . . . . . . . . . . . . . . . . . . . . . Hacking | -11 -10 -10 -10 -9 -8 -7 -7 -7 -7 -6 -6 -6 -6 -6 -6 -5 -5 -5 -5 -4 -4 -4 -4 -3 -3 -2 -2 -1 --------- Run | Yrd Mat Min Exi Min Mat Fac Gar Fac Gar Fac Was Fac Low Low Zio Pro Fac Gar Fac Fac Gar Fac Gar Res Gar Res DSF Acc Machines Accessed 41 | . 6 . 1 . 9 5 1 2 2 . . 1 . . . . 1 . 1 1 1 2 . 2 . 2 . 4 Terminals 28 | . 6 . . . 8 2 1 1 2 . . 1 . . . . . . . . 1 1 . 1 . 1 . 3 Fabricators . | . . . . . . . . . . . . . . . . . . . . . . . . . . . . . Repair Stations . | . . . . . . . . . . . . . . . . . . . . . . . . . . . . . Recycling Units . | . . . . . . . . . . . . . . . . . . . . . . . . . . . . . Scanalyzers 3 | . . . . . . 2 . . . . . . . . . . . . 1 . . . . . . . . . Garrison Access 9 | . . . . . 1 1 . 1 . . . . . . . . 1 . . 1 . 1 . 1 . 1 . 1 Total Hacks 82 | . 16 . 2 . 23 11 1 4 4 . . 2 . . . . 1 . 3 1 1 2 . 2 . 3 . 6 Successful 45 | . 9 . 2 . 10 8 1 1 1 . . 1 . . . . 1 . 1 1 1 1 . 1 . 3 . 3 Failed 37 | . 7 . . . 13 3 . 3 3 . . 1 . . . . . . 2 . . 1 . 1 . . . 3 Catastrophic 4 | . 3 . . . . . . . . . . . . . . . . . . . . . . . . . . 1 Database Lockouts . | . . . . . . . . . . . . . . . . . . . . . . . . . . . . . Manual 40 | . 16 . . . 16 3 . 3 . . . . . . . . . . . . . . . 1 . . . 1 Terminals 62 | . 16 . . . 22 5 1 3 4 . . 2 . . . . . . . . 1 1 . 1 . 1 . 5 Fabricators . | . . . . . . . . . . . . . . . . . . . . . . . . . . . . . Repair Stations . | . . . . . . . . . . . . . . . . . . . . . . . . . . . . . Recycling Units . | . . . . . . . . . . . . . . . . . . . . . . . . . . . . . Scanalyzers 7 | . . . . . . 4 . . . . . . . . . . . . 3 . . . . . . . . . Garrison Access 11 | . . . . . 1 2 . 1 . . . . . . . . 1 . . 1 . 1 . 1 . 2 . 1 Terminal Hacks 12 | . 1 . 2 . 3 . 1 . 1 . . 1 . . . . . . . . 1 . . . . 1 . 1 Record 2 | . . . 2 . . . . . . . . . . . . . . . . . . . . . . . . . Open Door 1 | . . . . . . . . . . . . . . . . . . . . . 1 . . . . . . . Open DSF 1 | . . . . . . . . . . . . . . . . . . . . . . . . . . 1 . . Emergency Access Points 2 | . . . . . . . 1 . 1 . . . . . . . . . . . . . . . . . . . Terminal Index 1 | . 1 . . . . . . . . . . . . . . . . . . . . . . . . . . . Unreport Threat 2 | . . . . . 2 . . . . . . . . . . . . . . . . . . . . . . . Locate Traps 2 | . . . . . 1 . . . . . . . . . . . . . . . . . . . . . . 1 Zone Layout 1 | . . . . . . . . . . . . 1 . . . . . . . . . . . . . . . . Fabricator Hacks . | . . . . . . . . . . . . . . . . . . . . . . . . . . . . . Repair Station Hacks . | . . . . . . . . . . . . . . . . . . . . . . . . . . . . . Recycling Unit Hacks . | . . . . . . . . . . . . . . . . . . . . . . . . . . . . . Scanalyzer 5 | . . . . . . 4 . . . . . . . . . . . . 1 . . . . . . . . . Retrieve Study 5 | . . . . . . 4 . . . . . . . . . . . . 1 . . . . . . . . . Garrison Access Hacks 10 | . . . . . 1 1 . 1 . . . . . . . . 1 . . 1 . 1 . 1 . 2 . 1 Unlock Access 7 | . . . . . . 1 . 1 . . . . . . . . 1 . . 1 . 1 . 1 . 1 . . Seal Access 3 | . . . . . 1 . . . . . . . . . . . . . . . . . . . . 1 . 1 Unauthorized Hacks 18 | . 8 . . . 6 3 . . . . . . . . . . . . . . . . . . . . . 1 Terminals 18 | . 8 . . . 6 3 . . . . . . . . . . . . . . . . . . . . . 1 Assimilate 2 | . 1 . . . . 1 . . . . . . . . . . . . . . . . . . . . . . Botnet 5 | . 2 . . . 1 1 . . . . . . . . . . . . . . . . . . . . . 1 Operators 2 | . 1 . . . 1 . . . . . . . . . . . . . . . . . . . . . . . Skim 9 | . 4 . . . 4 1 . . . . . . . . . . . . . . . . . . . . . . Fabricators . | . . . . . . . . . . . . . . . . . . . . . . . . . . . . . Repair Stations . | . . . . . . . . . . . . . . . . . . . . . . . . . . . . . Recycling Units . | . . . . . . . . . . . . . . . . . . . . . . . . . . . . . Scanalyzers . | . . . . . . . . . . . . . . . . . . . . . . . . . . . . . Garrison Access . | . . . . . . . . . . . . . . . . . . . . . . . . . . . . . Data Cores Recovered . | . . . . . . . . . . . . . . . . . . . . . . . . . . . . . Used . | . . . . . . . . . . . . . . . . . . . . . . . . . . . . . Hacking Detections 28 | . 6 . . . 8 2 . 2 1 . . 1 . . . . 1 . 1 . . 1 . 2 . . . 3 Full Trace Events 2 | . . . . . 1 . . . . . . . . . . . . . . . . . . . . . . 1 Feedback Events . | . . . . . . . . . . . . . . . . . . . . . . . . . . . . . Feedback Blocked . | . . . . . . . . . . . . . . . . . . . . . . . . . . . . . Robot Schematics Acquired . | . . . . . . . . . . . . . . . . . . . . . . . . . . . . . Robots Built . | . . . . . . . . . . . . . . . . . . . . . . . . . . . . . Authchips . | . . . . . . . . . . . . . . . . . . . . . . . . . . . . . Time . | . . . . . . . . . . . . . . . . . . . . . . . . . . . . . Total Robot Build Rating . | . . . . . . . . . . . . . . . . . . . . . . . . . . . . . Part Schematics Acquired . | . . . . . . . . . . . . . . . . . . . . . . . . . . . . . Parts Built . | . . . . . . . . . . . . . . . . . . . . . . . . . . . . . Authchips . | . . . . . . . . . . . . . . . . . . . . . . . . . . . . . Time . | . . . . . . . . . . . . . . . . . . . . . . . . . . . . . Total Part Build Rating . | . . . . . . . . . . . . . . . . . . . . . . . . . . . . . Part Studies Acquired 5 | . . . . . . 4 . . . . . . . . . . . . 1 . . . . . . . . . Parts Repaired . | . . . . . . . . . . . . . . . . . . . . . . . . . . . . . Time . | . . . . . . . . . . . . . . . . . . . . . . . . . . . . . Parts Recycled . | . . . . . . . . . . . . . . . . . . . . . . . . . . . . . Recycled Matter . | . . . . . . . . . . . . . . . . . . . . . . . . . . . . . Retrieved Matter . | . . . . . . . . . . . . . . . . . . . . . . . . . . . . . Retrieved Components . | . . . . . . . . . . . . . . . . . . . . . . . . . . . . . Parts Scanalyzed . | . . . . . . . . . . . . . . . . . . . . . . . . . . . . . Part Schematics Acquired . | . . . . . . . . . . . . . . . . . . . . . . . . . . . . . Parts Damaged . | . . . . . . . . . . . . . . . . . . . . . . . . . . . . . Bothacking | -11 -10 -10 -10 -9 -8 -7 -7 -7 -7 -6 -6 -6 -6 -6 -6 -5 -5 -5 -5 -4 -4 -4 -4 -3 -3 -2 -2 -1 ------------ Run | Yrd Mat Min Exi Min Mat Fac Gar Fac Gar Fac Was Fac Low Low Zio Pro Fac Gar Fac Fac Gar Fac Gar Res Gar Res DSF Acc Used RIF Installer 5 | . . . . . . . 1 . 1 . . . . . . . . 1 . . 1 . . . 1 . . . Hotswap 1 | . . . . . . . . . 1 . . . . . . . . . . . . . . . . . . . Threat Obfuscator 1 | . . . . . . . . . . . . . . . . . . . . . . . . . 1 . . . Zone Cloak 1 | . . . . . . . . . . . . . . . . . . . . . 1 . . . . . . . Program Shield 1 | . . . . . . . . . . . . . . . . . . 1 . . . . . . . . . . Robots Hacked 32 | . . . . . . . . 3 5 1 6 2 . 2 . . 1 4 . . 2 . 1 . 4 . . 1 Non-combat 3 | . . . . . . . . . . 1 . . . . . . 1 . . . . . . . . . . 1 Combat 29 | . . . . . . . . 3 5 . 6 2 . 2 . . . 4 . . 2 . 1 . 4 . . . Robot Hacks Applied 32 | . . . . . . . . 3 5 1 6 2 . 2 . . 1 4 . . 2 . 1 . 4 . . 1 find_chute 2 | . . . . . . . . . . 1 . . . . . . 1 . . . . . . . . . . . map_route 1 | . . . . . . . . . . . . . . . . . . . . . . . . . . . . 1 ignore_targets 6 | . . . . . . . . . . . 6 . . . . . . . . . . . . . . . . . overload_power 1 | . . . . . . . . . . . . . . . . . . 1 . . . . . . . . . . amplify_resonance 2 | . . . . . . . . . . . . . . . . . . . . . 1 . . . 1 . . . reboot_system 5 | . . . . . . . . . 2 . . . . 1 . . . 1 . . . . . . 1 . . . overwrite_iff 3 | . . . . . . . . . . . . 1 . 1 . . . 1 . . . . . . . . . . formatsys_high 12 | . . . . . . . . 3 3 . . 1 . . . . . 1 . . 1 . 1 . 2 . . . Relay Couplers Released 67 | . . . . . . . 23 . 15 . . . . . . . . 8 . . 3 . 8 . 10 . . . Machine Destruction 63 | . . . . . . . 23 . 11 . . . . . . . . 8 . . 3 . 8 . 10 . . . Programmers 4 | . . . . . . . . . 4 . . . . . . . . . . . . . . . . . . . Attached 16 | . . . . . . . . 2 3 1 . 2 . 1 . . . 2 . . 1 . 1 . 2 . . 1 Fabnet Peak Effective % . | . . . . . . . . . . . . . . . . . . . . . . . . . . . . . Robots Rewired 3 | . . . . . . . . . . . . . . . . 2 1 . . . . . . . . . . . Allies Hacked . | . . . . . . . . . . . . . . . . . . . . . . . . . . . . . Hacks Repelled . | . . . . . . . . . . . . . . . . . . . . . . . . . . . . . Allies | -11 -10 -10 -10 -9 -8 -7 -7 -7 -7 -6 -6 -6 -6 -6 -6 -5 -5 -5 -5 -4 -4 -4 -4 -3 -3 -2 -2 -1 -------- Run | Yrd Mat Min Exi Min Mat Fac Gar Fac Gar Fac Was Fac Low Low Zio Pro Fac Gar Fac Fac Gar Fac Gar Res Gar Res DSF Acc Total Allies 29 | . . 3 . 3 . . . 3 5 . 1 2 . 1 . 2 1 2 . . 3 . 1 . 2 . . . Largest Group 7 | . . 3 . 3 3 . . 3 7 6 6 2 . 1 . 2 3 1 . . 2 2 1 . 1 1 1 . Highest-Rated Group 329 | . . 69 . 40 40 . . 96 329 235 235 58 . 41 . 98 127 29 . . 92 92 49 . 47 47 47 . Highest-Rated Ally 95 | . . 31 . 16 16 . . 32 95 76 76 29 . 41 . 49 49 29 . . 47 46 49 . 47 47 47 . Total Orders 27 | . . . . 5 9 . . 4 8 . . . . . . . 1 . . . . . . . . . . . STAY 15 | . . . . 2 5 . . 2 5 . . . . . . . 1 . . . . . . . . . . . FOLLOW 12 | . . . . 3 4 . . 2 3 . . . . . . . . . . . . . . . . . . . Ally Attacks 295 | . . 9 . . 48 . . 7 57 . 97 14 . 2 . 12 13 13 . . 4 7 8 . 2 . 2 . Total Damage 7005 | . . 105 . . 441 . . 190 1480 . 2731 228 . 58 . 419 393 245 . . 133 231 245 . 45 . 61 . Kills 32 | . . 2 . . 4 . . 2 9 . 4 1 . . . 3 3 2 . . . . 1 . 1 . . . Allies Corrupted 2 | . . . . . . . . . 1 . 1 . . . . . . . . . . . . . . . . . Allies Melted 2 | . . . . . . . . . . . . . . . . . 1 . . . . . 1 . . . . . Intel | -11 -10 -10 -10 -9 -8 -7 -7 -7 -7 -6 -6 -6 -6 -6 -6 -5 -5 -5 -5 -4 -4 -4 -4 -3 -3 -2 -2 -1 ------- Run | Yrd Mat Min Exi Min Mat Fac Gar Fac Gar Fac Was Fac Low Low Zio Pro Fac Gar Fac Fac Gar Fac Gar Res Gar Res DSF Acc Active Infowar (turns) . | . . . . . . . . . . . . . . . . . . . . . . . . . . . . . Robot Analysis Total . | . . . . . . . . . . . . . . . . . . . . . . . . . . . . . Derelict Logs Recovered . | . . . . . . . . . . . . . . . . . . . . . . . . . . . . . Drone Launches . | . . . . . . . . . . . . . . . . . . . . . . . . . . . . . Drone Recoveries . | . . . . . . . . . . . . . . . . . . . . . . . . . . . . . Exploration | -11 -10 -10 -10 -9 -8 -7 -7 -7 -7 -6 -6 -6 -6 -6 -6 -5 -5 -5 -5 -4 -4 -4 -4 -3 -3 -2 -2 -1 ------------- Run | Yrd Mat Min Exi Min Mat Fac Gar Fac Gar Fac Was Fac Low Low Zio Pro Fac Gar Fac Fac Gar Fac Gar Res Gar Res DSF Acc Turns Passed 20782 | 50 1128 1167 247 614 2197 640 949 840 1516 160 203 1224 467 631 2048 811 440 582 713 32 887 186 822 286 677 102 269 894 Spaces Moved 10181 | 22 600 659 155 372 1007 344 394 478 790 88 114 505 241 322 234 408 315 342 448 21 472 129 403 202 375 78 85 578 Core 201 | . 4 . . . . . . . . . . . . . . . . . . . . . . . . . . 197 Treads 4516 | 22 596 659 155 372 1007 45 7 . 220 88 114 505 241 322 163 . . . . . . . . . . . . . Legs 3730 | . . . . . . . . . . . . . . . 71 408 315 342 448 21 472 129 403 202 375 78 85 381 Wheels 1734 | . . . . . . 299 387 478 570 . . . . . . . . . . . . . . . . . . . Hover . | . . . . . . . . . . . . . . . . . . . . . . . . . . . . . Flight . | . . . . . . . . . . . . . . . . . . . . . . . . . . . . . Fastest Speed 50 | 160 100 160 160 160 163 125 140 140 140 163 163 163 163 163 120 120 118 118 118 118 118 118 118 120 120 120 124 50 Average Speed 146 | 160 160 160 160 160 165 151 154 152 154 163 163 177 171 163 157 180 118 118 118 118 118 118 128 120 120 120 124 100 Slowest Speed 252 | 160 250 160 160 160 166 252 163 155 163 163 163 229 229 163 190 190 118 118 118 118 118 118 190 190 190 124 124 190 Overloaded Moves . | . . . . . . . . . . . . . . . . . . . . . . . . . . . . . Propulsion Burnouts . | . . . . . . . . . . . . . . . . . . . . . . . . . . . . . Robots Hopped . | . . . . . . . . . . . . . . . . . . . . . . . . . . . . . Potential Cave-ins 2 | . . . . . . . . . . . . . . . . . . . . . . . . 2 . . . . Cave-ins Triggered . | . . . . . . . . . . . . . . . . . . . . . . . . . . . . . Exploration Rate (%) 38 | 3 77 98 54 85 78 12 58 15 82 5 77 11 41 56 13 60 9 45 12 1 43 6 33 4 36 4 84 24 Regions Visited 28 Branch Regions 7 Pre-discovered Areas 1 | . . . 1 . . . . . . . . . . . . . . . . . . . . . . . . . Known Exits Taken 8 | . . . . . . 1 . 1 . . . 1 . . . . 1 . . 1 . 1 . 1 . 1 . . Unknown Exits Taken 11 | 1 1 1 1 1 1 . . . . . . . 1 1 1 1 . . 1 . . . . . . . . . Scrap Searched . | . . . . . . . . . . . . . . . . . . . . . . . . . . . . . Spaces Dug 218 | . . . . 27 9 1 1 . 19 . . 8 . . . . . 5 6 1 3 5 97 6 24 . . 6 Terrain Destroyed 887 | . . 48 . 59 72 5 33 28 28 3 . 63 11 15 . 31 21 43 42 2 16 5 147 8 68 . 9 130 Melee 9 | . . . . . . . . . . . . 3 . . . . . . . . . . . 5 . . . 1 Projectile 224 | . . . . . 14 5 13 6 7 3 . 23 11 15 . 1 5 5 23 2 15 5 12 3 8 . 9 39 AOE 653 | . . 48 . 59 58 . 20 22 21 . . 37 . . . 30 16 38 19 . . . 135 . 60 . . 90 Terrain Rammed . | . . . . . . . . . . . . . . . . . . . . . . . . . . . . . Walls Destroyed . | . . . . . . . . . . . . . . . . . . . . . . . . . . . . . Machines Disabled . | . . . . . . . . . . . . . . . . . . . . . . . . . . . . . Actions | -11 -10 -10 -10 -9 -8 -7 -7 -7 -7 -6 -6 -6 -6 -6 -6 -5 -5 -5 -5 -4 -4 -4 -4 -3 -3 -2 -2 -1 --------- Run | Yrd Mat Min Exi Min Mat Fac Gar Fac Gar Fac Was Fac Low Low Zio Pro Fac Gar Fac Fac Gar Fac Gar Res Gar Res DSF Acc Total 14342 | 27 694 728 154 381 1388 403 636 552 984 101 126 693 260 366 1919 446 355 450 551 27 652 146 592 221 499 83 181 727 Wait 2885 | . 33 35 . 1 278 23 162 41 59 6 4 99 2 8 1668 15 18 50 56 . 73 4 104 2 38 2 62 42 Move 10157 | 21 599 658 154 371 1006 343 393 478 789 88 113 504 240 321 233 407 314 341 447 21 471 129 402 201 374 77 84 578 Hop . | . . . . . . . . . . . . . . . . . . . . . . . . . . . . . Pick Up 33 | . 5 2 . . . . 7 2 5 . . . . . 1 . . 1 . . 2 . 1 . 4 . . 3 Fast Attach 23 | . 3 . . . . . . . 1 . . 1 1 1 4 . . 1 . . 2 . 2 3 2 . 1 1 Attach 32 | . 5 . . . 1 2 1 1 2 1 . . . 2 . . 1 . . 1 1 . 5 1 1 . 1 6 Detach 10 | . . . . . 1 . . . . . . . . . . . . . . . . . 5 . 1 . . 3 Swap 149 | . . 5 . 2 22 1 6 9 19 2 . 19 2 5 . 5 3 8 4 . 7 1 5 1 17 . 3 3 Drop 48 | . . . . . 1 1 2 1 5 1 . . . . 13 . . 2 1 3 . . 6 1 3 2 2 4 Fire 862 | 6 43 26 . 6 79 31 57 19 66 3 9 48 14 28 . 19 19 42 43 2 80 6 55 7 54 2 28 70 Melee 55 | . . . . . . . . . . . . 22 1 1 . . . . . . 7 6 2 5 . . . 11 Ram . | . . . . . . . . . . . . . . . . . . . . . . . . . . . . . Kick 6 | . . . . . . . . . . . . . . . . . . . . . . . . . . . . 6 Crush 11 | . 6 2 . 1 . 2 . . . . . . . . . . . . . . . . . . . . . . Escape Stasis 68 | . . . . . . . 8 . 36 . . . . . . . . 5 . . 9 . 5 . 5 . . . Rewire 3 | . . . . . . . . 1 2 . . . . . . . . . . . . . . . . . . . Trap . | . . . . . . . . . . . . . . . . . . . . . . . . . . . . . Miscellaneous . | . . . . . . . . . . . . . . . . . . . . . . . . . . . . . Route ------- -11/Scrapyard -10/Materials (discovered 2 exits: [*Mat] / [*Min]) -10/Mines (discovered 4 exits: [*Mat x2] / *Exi / [*Sub]) -10/Exiles -9/Mines -8/Materials -7/Factory -7/Garrison (discovered 2 exits: *Fac x2) -7/Factory (discovered 2 exits: [*Low] / Gar) -7/Garrison (discovered 2 exits: [*Fac x2]) -6/Factory -6/Waste -6/Factory (discovered 2 exits: *Fac / *Low) -6/Lower Caves -6/Lower Caves -6/Zion -5/Proximity Caves -5/Factory (discovered 2 exits: *Fac / Gar) -5/Garrison -5/Factory -4/Factory -4/Garrison -4/Factory -4/Garrison -3/Research -3/Garrison -2/Research -2/DSF -1/Access History --------- Turn | Location | Event 8 | -11/Scrapyard | Discovered new exit (range 14) 51 | -11/Scrapyard | Entered Materials 310 | -10/Materials | Build established: Mutant 656 | -10/Materials | Discovered new exit (range 13) 912 | -10/Materials | Discovered new exit (range 12) 1179 | -10/Materials | Entered Mines 1229 | -10/Mines | Met a Derelict testing a Signal Generator 1264 | -10/Mines | Received a Rocket Launcher from a helpful Derelict 1312 | -10/Mines | Discovered new exit (range 4) 1373 | -10/Mines | Assembled infested the area 1424 | -10/Mines | Lost 3 allies 2069 | -10/Mines | Discovered new exit (range 8) 2071 | -10/Mines | Discovered new exit (range 8) 2134 | -10/Mines | A weapon hastily lodged in a ceiling crevice suddenly fell to the ground 2340 | -10/Mines | Deemed a non-threat by the Exiles lab entrance 2340 | -10/Mines | Discovered new exit (range 5) 2346 | -10/Mines | Entered Exiles 2385 | -10/Exiles | Met 8R-AWN 2414 | -10/Exiles | Met EX-HEX 2457 | -10/Exiles | Met EX-BIN 2476 | -10/Exiles | Aligned with FarCom system 2478 | -10/Exiles | Given EX-Vault access code 2527 | -10/Exiles | Learned location of Zion (-6) 2577 | -10/Exiles | Discovered new exit (range 11) 2593 | -10/Exiles | Entered Mines 2595 | -9/Mines | Assisted by bots powering up and referring to "LRC-V3" 2610 | -9/Mines | Met a Derelict bent on vengeance 2822 | -9/Mines | Discovered new exit (range 5) 3207 | -9/Mines | Entered Materials 3207 | -8/Materials | Accompanied by 3 allies 3207 | -8/Materials | Evolved 4 slots: Propulsion x2, Utility x1, Weapon x1 3593 | -8/Materials | Build established: Tank 4853 | -8/Materials | Discovered new exit (range 12) 5404 | -8/Materials | Entered Factory 5404 | -7/Factory | Evolved 2 slots: Power x1, Utility x1 6035 | -7/Factory | Identified exit to Garrison 6044 | -7/Factory | Entered Garrison 6130 | -7/Garrison | Triggered checkpoint 6155 | -7/Garrison | Garrison Relay disabled 6245 | -7/Garrison | Garrison Relay disabled 6251 | -7/Garrison | Garrison Relay disabled 6258 | -7/Garrison | Garrison Relay disabled 6262 | -7/Garrison | Garrison Relay disabled 6295 | -7/Garrison | Lost 4 parts (2n2u) 6422 | -7/Garrison | Triggered checkpoint 6564 | -7/Garrison | Installed Relay Interface Framework 6609 | -7/Garrison | Discovered new exit (range 8) 6630 | -7/Garrison | Triggered checkpoint 6669 | -7/Garrison | Garrison Relay disabled 6736 | -7/Garrison | Triggered checkpoint 6856 | -7/Garrison | Build established: Bothacker-Tank 6956 | -7/Garrison | Discovered new exit (range 8) 6993 | -7/Garrison | Entered Factory 7462 | -7/Factory | Discovered new exit (range 15) 7829 | -7/Factory | Identified exit to Garrison 7833 | -7/Factory | Entered Garrison 7833 | -7/Garrison | Accompanied by 3 allies 7847 | -7/Garrison | Expanded RIF knowledge: Hotswap 7986 | -7/Garrison | Triggered checkpoint 8125 | -7/Garrison | Garrison Relay disabled 8245 | -7/Garrison | Triggered checkpoint 8299 | -7/Garrison | Triggered checkpoint 8478 | -7/Garrison | Triggered checkpoint 8544 | -7/Garrison | Found embedded Infiltrators 8555 | -7/Garrison | Garrison Relay disabled 8663 | -7/Garrison | Triggered checkpoint 8879 | -7/Garrison | Discovered new exit (range 11) 8883 | -7/Garrison | Triggered checkpoint 8901 | -7/Garrison | Garrison Relay disabled 9081 | -7/Garrison | Discovered new exit (range 10) 9223 | -7/Garrison | Triggered checkpoint 9349 | -7/Garrison | Entered Factory 9349 | -6/Factory | Accompanied by 6 allies 9349 | -6/Factory | Evolved 2 slots: Power x1, Utility x1 9509 | -6/Factory | Sucked down chute 9509 | -6/Factory | Entered Waste 9510 | -6/Waste | Met a frightened Derelict 9524 | -6/Waste | EMP discharged 9557 | -6/Waste | Spotted C-40 Crusher 9572 | -6/Waste | Spotted C-40 Crusher 9574 | -6/Waste | Spotted C-40 Crusher 9578 | -6/Waste | Spotted C-40 Crusher 9588 | -6/Waste | Spotted C-40 Crusher 9604 | -6/Waste | Spotted C-40 Crusher 9624 | -6/Waste | EMP discharged 9624 | -6/Waste | System corruption reached 10% 9679 | -6/Waste | 1 allies followed down the chute 9689 | -6/Waste | 5 allies followed down the chute 9694 | -6/Waste | Discovered new exit (range 11) 9712 | -6/Waste | Entered Factory 9880 | -6/Factory | Discovered new exit (range 7) 10198 | -6/Factory | Discovered new exit (range 12) 10307 | -6/Factory | Build established: Tank 10777 | -6/Factory | Build established: Mutant 10933 | -6/Factory | Identified exit to Lower Caves 10936 | -6/Factory | Entered Lower Caves 11300 | -6/Lower Caves | Build established: Tank 11302 | -6/Lower Caves | Attracted the attention of an 0b10 checkpoint 11396 | -6/Lower Caves | Discovered new exit (range 4) 11403 | -6/Lower Caves | Entered another Lower Caves area 11806 | -6/Lower Caves | Lost 3 parts (1u2w) 12027 | -6/Lower Caves | Discovered new exit (range 5) 12034 | -6/Lower Caves | Entered Zion 12085 | -6/Zion | System corruption cleaned by Quarantine Array 12194 | -6/Zion | Found CR-A16's Pointy Stick 12262 | -6/Zion | Discovered new exit (range 15) 14082 | -6/Zion | Entered Proximity Caves 14084 | -5/Proximity Caves | Attracted the attention of an 0b10 outpost 14086 | -5/Proximity Caves | Spotter reported a threat 14147 | -5/Proximity Caves | Destroyed 10 combat bots 14694 | -5/Proximity Caves | Discovered new exit (range 12) 14893 | -5/Proximity Caves | Entered Factory 14893 | -5/Factory | Accompanied by 2 allies 14893 | -5/Factory | Evolved 2 slots: Propulsion x1, Weapon x1 15027 | -5/Factory | Identified exit to Garrison 15112 | -5/Factory | Discovered new exit (range 15) 15263 | -5/Factory | Lost 3 allies 15333 | -5/Factory | Entered Garrison 15475 | -5/Garrison | Triggered checkpoint 15536 | -5/Garrison | Expanded RIF knowledge: Program Shield 15565 | -5/Garrison | Garrison Relay disabled 15630 | -5/Garrison | Triggered checkpoint 15658 | -5/Garrison | Triggered checkpoint 15744 | -5/Garrison | Triggered checkpoint 15753 | -5/Garrison | Discovered new exit (range 11) 15807 | -5/Garrison | Triggered checkpoint 15839 | -5/Garrison | Garrison Relay disabled 15915 | -5/Garrison | Entered Factory 16321 | -5/Factory | Discovered new exit (range 5) 16628 | -5/Factory | Entered another Factory area 16628 | -4/Factory | Evolved 2 slots: Propulsion x1, Utility x1 16659 | -4/Factory | Identified exit to Garrison 16660 | -4/Factory | Entered Garrison 16676 | -4/Garrison | Triggered checkpoint 16797 | -4/Garrison | Spotted B-86 Titan 16850 | -4/Garrison | Revealed the true nature of CR-A16's Pointy Stick 16853 | -4/Garrison | Destroyed B-86 Titan 16890 | -4/Garrison | Triggered checkpoint 16974 | -4/Garrison | Triggered checkpoint 17053 | -4/Garrison | Expanded RIF knowledge: Zone Cloak 17290 | -4/Garrison | Garrison Relay disabled 17330 | -4/Garrison | Triggered checkpoint 17353 | -4/Garrison | Rescued a captive Derelict 17354 | -4/Garrison | Rescued a captive Derelict 17407 | -4/Garrison | Discovered new exit (range 4) 17459 | -4/Garrison | Spotted B-86 Titan 17464 | -4/Garrison | Destroyed B-86 Titan 17547 | -4/Garrison | Entered Factory 17547 | -4/Factory | Accompanied by 2 allies 17701 | -4/Factory | Spotted B-86 Titan 17712 | -4/Factory | Destroyed B-86 Titan 17733 | -4/Factory | Identified exit to Garrison 17733 | -4/Factory | Entered Garrison 17733 | -4/Garrison | Accompanied by 1 ally 17902 | -4/Garrison | Destroyed 7 combat bots 18029 | -4/Garrison | Triggered checkpoint 18069 | -4/Garrison | Garrison Relay disabled 18220 | -4/Garrison | Triggered checkpoint 18228 | -4/Garrison | Spotted B-86 Titan 18362 | -4/Garrison | Destroyed B-86 Titan 18443 | -4/Garrison | Triggered checkpoint 18448 | -4/Garrison | Discovered new exit (range 10) 18510 | -4/Garrison | Garrison Relay disabled 18555 | -4/Garrison | Entered Research 18555 | -3/Research | Evolved 2 slots: Utility x2 18838 | -3/Research | Identified exit to Garrison 18841 | -3/Research | Entered Garrison 18884 | -3/Garrison | Triggered checkpoint 19017 | -3/Garrison | Garrison Relay disabled 19060 | -3/Garrison | Triggered checkpoint 19077 | -3/Garrison | Triggered checkpoint 19088 | -3/Garrison | Triggered checkpoint 19128 | -3/Garrison | System corruption reached 10% 19137 | -3/Garrison | Destroyed 8 combat bots 19226 | -3/Garrison | Discovered new exit (range 10) 19276 | -3/Garrison | Expanded RIF knowledge: Threat Obfuscation 19394 | -3/Garrison | Triggered checkpoint 19432 | -3/Garrison | Garrison Relay disabled 19518 | -3/Garrison | Entered Research 19518 | -2/Research | Accompanied by 1 ally 19518 | -2/Research | Evolved 2 slots: Power x1, Weapon x1 19553 | -2/Research | Identified exit to Garrison 19617 | -2/Research | Identified exit to DSF 19620 | -2/Research | Entered DSF 19620 | -2/DSF | Accompanied by 1 ally 19666 | -2/DSF | Additional patrols routed to DSF 19823 | -2/DSF | Discovered new exit (range 14) 19878 | -2/DSF | Sterilization system engaged 19889 | -2/DSF | Entered Access 19889 | -1/Access | Evolved 2 slots: Utility x1, Weapon x1 20203 | -1/Access | Build established: Generator-Executioner 20332 | -1/Access | Found Gamma Bomb Array 20374 | -1/Access | Lost 5 parts (1n3u1w) 20380 | -1/Access | Destroyed 12 combat bots 20389 | -1/Access | First assault squad dispatched 20581 | -1/Access | Spotted B-99 Colossus 20617 | -1/Access | Lost 8 parts (3p2u3w) 20681 | -1/Access | Lost 4 parts (3n1w) 20727 | -1/Access | Core integrity fell below 50% 20754 | -1/Access | Lost 3 parts (2n1u) 20764 | -1/Access | System corruption reached 10% 20773 | -1/Access | Spotted B-99 Colossus 20777 | -1/Access | Core integrity fell below 20% 20783 | -1/Access | Destroyed by G-73 Enforcer with Heavy Laser Last Messages --------------- reinforcements to Terminal A011. 20740_ O-24 Administrator locks terminal. 20769_ P-80 Master destroyed. 20770_ System corrupted: Neutron Missile Launcher rejected. 20772_ Acquired Neutron Missile Launcher. 20774_ Knocked back. 20774_ Penetrated by Slug. 20774_ Slug penetrates Earth. 20774_ Relay Coupler [NC] destroyed. 20774_ Penetrated by Slug. 20774_ Slug penetrates Earth. 20774_ Slug penetrates Wall. 20774_ Neutron Missile Launcher destroyed. 20774_ Penetrated by Slug. [DISCOUNT: For the next 110 turns enjoy 50% off any Special Melee Weapon!] 20777_ Wave Collapse Detector explodes. 20777_ Penetrated by Slug. 20779_ The unstable cave ceiling collapses. Map ----- +----------------------------------------------------+ | #??????? ? ##########+##########???????????? | | #??????? #???????????? | | +?????? ##### #???????????? | | #? ??????? " #???# ###?????????? | | ## #?????#? #??## # ##????????? | | ?# #?????????? #### #????????? | | ?# #??????????? ##########+##+## ####?????? | | ?# #??????????#?????????? ?? ## % #?????? | | ?# ############?????????? # #?????? | | ?# " #????????? " # ####??? | | ## %" #??????? p""" # ###? | | % " #??????# """# p ? | | ## #### #??????# " # p | | ?# #?????????????????# # % | | ?# #?????????????????# ## #?????? | | ?# #???????????????########### #??????? | | ## #??????????????^^ ### # ###??????? | | ## ###????????????^^? # #????????? | | #????????????^^??? # #????????? | | T ###????????######??# ; #????????? | | " +????????# # ; #????????? | | ###????????# + + #????????? | | #??????????# # g# ##????????? | | ##??????????# ??# # #?????????? | | #???????????# ????# # ##?????????? | | #???????????# ??????#@ ###########??????????? | | # #???????????????????# #????????????????????? | | # ##??????????????????# #????????????????????? | | #??????????????????# #????????????????????? | | T" #?????????????????? ????????????????????? | | "" #?????????????????? ???????????????????? | | #???????#?????????? #??????????????????? | | #????? #????????? +?g????????????????? | | ## ###??? #???????C? % #???g??????????????? | | ?# #### #????????? g % #?g????????????????? | | ?# + #????????? % #??????????????????? | | ?#### # #?????????#%% ##??????????????????? | | ????# #?? #?????????# u #???????????????????? | | ????# #???? #?????????# % #???????????????????? | | ????# #??????#?????????# % #???????????????????? | | ????# #????????????????#t #???????????????????? | | ????# #????????????????# #???????????????????? | | ????# #????????????????#% #???????????????????? | | ????# #????#+#?????????# #???????????????????? | | ????# #????# #?????????# #???????????????????? | | ????# ###### #######???# #???????????????????? | | ????# #???# % #???????????????????? | | ????#+############ #???# #???????????????????? | | ?????????????????# ##### #???????????????????? | | ?????????????????# #???????????????????? | +----------------------------------------------------+ Best States ------------- Heat Dissipation 90 Coolant Potential 120 Energy Generation 65 Energy Capacity 830 Matter Stores 450 Matter Capacity 450 Sight Range 16 Terrain Scan Density 10 Armor Coverage 825 Evasion (%) 55 Core Analysis 8 Recoil Reduction 3 Relay Coupler Types 2 Relay Coupler Value 62 Item Schematics ----------------- None Robot Schematics ------------------ None Fabricated ------------ Nothing Repaired ---------- Nothing Studied --------- Arm. Wheel | -7/Factory | Hacked Rocket Launcher | -7/Factory | Hacked Arm. Treads | -7/Factory | Hacked Grenade Launcher | -7/Factory | Hacked Antimatter Reactor | -5/Factory | Hacked Alien Tech Used ----------------- None Achievements -------------- Taming Of The Crushers Challenges ------------ None Cogshop Purchases (82) ------------------------ Spk. Treads (874) Spk. Treads (874) Autogun (699) Autogun (699) Grenade Launcher (899) Med. Armor Plating (699) Lrg. Matter Pod (Loot Box) Imp. Heat Sink (Loot Box) Arm. Wheel (Loot Box) Ion Engine (Loot Box) Hvy. EM Shotgun (Loot Box) Med. Armor Plating (501) Shield Generator (601) Hvy. Ion Engine (1054) Imp. Assault Rifle (767) Hrd. Heavy Armor Plating (670) Arm. Treads (1187) Prc. Assault Rifle (1036) Arm. Treads (1336) Hrd. Heavy Armor Plating (753) Force Field (760) Fission Core (771) Force Field (850) Remote Datajack (816) Imp. Medium Treads (1271) Imp. Medium Treads (1271) Antimatter Cannon (922) Neutrino Core (1107) Imp. Matter Compressor (949) Lrn. Tractor Beam (1062) Antimatter Cannon (741) Thunder Hammer (1864) Imp. Coolant Injector (Loot Box) Imp. Medium Armor Plating (871) Imp. Medium Armor Plating (871) Adv. Shield Generator (1031) Imp. Remote Datajack (915) Force Field (1033) Cld. Plasma Rifle (1092) Cld. Plasma Rifle (1092) Imp. Heavy Armor Plating (1012) Imp. Heavy Armor Plating (1012) Enh. Armored Leg (763) Enh. Armored Leg (763) Enh. Armored Leg (763) Enh. Armored Leg (763) Antimatter Reactor (1572) Biometal Leg (Loot Box) Linear Accelerator (Loot Box) Imp. Force Field (1142) Enh. Fission Core (1229) Adv. Heat Sink (826) Exp. Cooling System (1096) Adv. Force Field (Loot Box) Neutron Missile Launcher (3460) Exp. Coolant Injector (1279) Helical Railgun (1162) Particle Reactor (1384) Particle Reactor (1384) Graphene Brace (945) Enh. Armored Leg (1281) Enh. Armored Leg (1281) Helical Railgun (959) Helical Railgun (959) Adv. Force Field (897) Hvy. Antimatter Reactor (1390) Hvy. Antimatter Reactor (1390) Exp. Core Analyzer (1043) Lyr. Heavy Armor Plating (1048) Lgt. Antimatter Cannon (1250) Lgt. Quantum Reactor (Loot Box) Antigrav Array (Loot Box) Cld. Q-thruster (Loot Box) Quantum Reactor (Loot Box) Hvy. Shield Leg (1360) Lgt. Antimatter Cannon (1341) Imp. Heavy Armor Plating (982) Gamma Bomb Array (1469) Hvy. Shield Leg (1299) Hvy. Shield Leg (1299) Com. Linear Accelerator (1236) Ovr. Treads (770) Game ------ Seed TacticalConceptInterrupter Manual? 0 Play Time 02:33:14 Cumulative 337.0 hours Start 2026.01.23 @ 12:51:32 End 2026.01.25 @ 21:56:31 Sessions 11 Manual Loads 0 Difficulty Rogue Special Mode AFD2019/Pay2Buy Game No. 95 Rogue 89 Adventurer 0 Explorer 6 Win Type - Total 19 Types 9/1/3/1/1/0/2/1/0/1 Lore% 87 Gallery% 78 Achievement% 70 Wizard Run 0 Options --------- Layout 1 ASCII 0 Keyboard 0 Movement Mouse Keybinds 0 Fullscreen 2 Font 24/Smallcaps Map View 50x35 Zoom Use 0% Tactical HUD 1 Map Filters NONE Filters NONE Steam 1 RUN: a9458880-71e9-44e5-b3d1-777aaca0ac03